fUSD/lending_fUSD_20250321
["ID","MTS","AMOUNT","RATE_DAILY","PERIOD"]
[356485502,1742518246678,-151.0,0.0003147,7]
[356485503,1742518246687,-151.0,0.0003147,7]
[356485504,1742518246698,-151.0,0.0003147,7]
[356485505,1742518246707,-151.0,0.0003147,7]
[356485506,1742518246716,-151.0,0.0003147,7]
[356485507,1742518246725,-151.0,0.0003147,7]
[356485508,1742518246734,-812.046757,0.0003147,7]
[356485509,1742518246743,-812.046757,0.0003147,7]
[356485510,1742518246753,-812.046757,0.0003147,7]
[356485511,1742518246763,-812.046757,0.0003147,7]
[356485512,1742518246773,-10000.0,0.0003147,7]
[356485513,1742518246782,-10000.0,0.0003147,7]
[356485514,1742518246791,-10000.0,0.0003147,7]
[356485515,1742518246800,-10000.0,0.0003147,7]
[356485516,1742518246809,-501.31893,0.0003147,7]
[356485517,1742518246819,-501.31893,0.0003147,7]
[356485518,1742518246829,-612.870664,0.0003147,7]
[356485519,1742518246838,-612.870664,0.0003147,7]
[356485520,1742518246847,-10000.0,0.0003147,7]
[356485521,1742518246858,-10000.0,0.0003147,7]
[356485522,1742518246869,-501.31893,0.0003147,7]
[356485523,1742518246878,-612.870664,0.0003147,7]
[356485524,1742518246887,-501.31893,0.0003147,7]
[356485525,1742518246897,-10000.0,0.0003147,7]
[356485526,1742518246906,-612.870664,0.0003147,7]
[356485527,1742518246916,-10000.0,0.0003147,7]
[356485528,1742518246927,-261.179892,0.0003147,7]
[356485529,1742518246937,-261.179892,0.0003147,7]
[356485530,1742518246945,-261.179892,0.0003147,7]
[356485531,1742518246954,-261.179892,0.0003147,7]
[356485532,1742518246963,-563.143116,0.0003147,7]
[356485533,1742518246972,-563.143116,0.0003147,7]
[356485534,1742518246981,-563.143116,0.0003147,7]
[356485535,1742518246990,-563.143116,0.0003147,7]
[356485536,1742518247000,-3381.715528,0.0003147,7]
[356485537,1742518247009,-3381.715528,0.0003147,7]
[356485538,1742518247018,-3381.715528,0.0003147,7]
[356485539,1742518247027,-3381.715528,0.0003147,7]
[356485540,1742518247036,-194.695584,0.0003147,7]
[356485541,1742518247045,-194.695584,0.0003147,7]
[356485542,1742518247054,-194.695584,0.0003147,7]
[356485543,1742518247063,-194.695584,0.0003147,7]
[356485544,1742518247073,-456.0,0.0003147,5]
[356485545,1742518247083,-309.012802,0.00031471,7]
[356485546,1742518247092,-151.0,0.00031471,7]
[356485547,1742518247101,-151.0,0.00031471,7]
[356485548,1742518247110,-151.0,0.00031471,7]
[356485549,1742518247122,-51901.497333,0.00031471,2]
[356485550,1742518247131,-810.21521697,0.00031471,2]
[356485551,1742518247190,-919.10920237,0.00031471,2]
[356485552,1742518247200,-1500.0,0.00031471,2]
[356485553,1742518247211,-17816.20454682,0.00031471,2]
[356485555,1742519007246,422.52555944,0.00031478,120]
[356485556,1742519015000,327.46019682,0.00031478,120]
[356485566,1742519431736,-358.98,0.00024304,2]
[356485567,1742519431745,-150.0,0.0002433,2]
[356485568,1742519431755,-150.0,0.00024632,2]
[356485569,1742519431764,-152.0,0.00025199,3]
[356485570,1742519431773,-152.0,0.00026038,4]
[356485571,1742519431782,-150.0,0.00026221,2]
[356485572,1742519431793,-300.0,0.00026221,2]
[356485573,1742519431802,-1000.0,0.00026222,2]
[356485574,1742519431811,-659.33,0.00026222,2]
[356485575,1742519431820,-964.79864548,0.00026222,2]
[356485576,1742519431832,-35.20135452,0.00026222,2]
[356485577,1742519431841,-150.0,0.00026222,2]
[356485578,1742519431850,-2424.29456987,0.00026222,2]
[356485579,1742519432033,-10402.38722552,0.00026222,2]
[356485580,1742519432054,-11073.31820461,0.00026222,2]
[356485581,1742519432064,-200.0,0.00026222,2]
[356485582,1742519432073,-163.23,0.00026277,30]
[356485583,1742519432083,-358.98,0.00026568,2]
[356485584,1742519432092,-350.0,0.00026735,2]
[356485585,1742519432101,-350.0,0.00026735,2]
[356485586,1742519432111,-350.0,0.00026735,2]
[356485587,1742519432120,-150.0,0.00026735,2]
[356485588,1742519432129,-165.21,0.00026849,2]
[356485589,1742519432138,-152.0,0.00026877,5]
[356485590,1742519432148,-262.82124495,0.000269,4]
[356485591,1742519432157,-225.46,0.00027592,2]
[356485592,1742519432166,-152.0,0.00027716,6]
[356485593,1742519432175,-420.0,0.0002837,2]
[356485594,1742519432184,-152.0,0.00028555,7]
[356485595,1742519432193,-250.0,0.00028695,2]
[356485596,1742519432203,-284.28,0.00028707,2]
[356485597,1742519432212,-358.98,0.00028832,2]
[356485598,1742519432221,-417.74,0.00028949,2]
[356485599,1742519432230,-225.46,0.00028962,2]
[356485600,1742519432239,-171.12,0.00029004,120]
[356485601,1742519432248,-152.0,0.00029394,8]
[356485602,1742519432258,-1000.0,0.000295,2]
[356485603,1742519432267,-1829.0,0.00029539,2]
[356485604,1742519432276,-500.0,0.0003,15]
[356485605,1742519432285,-152.0,0.00030233,9]
[356485606,1742519432296,-500.0,0.00030356,2]
[356485607,1742519432305,-441.3603604,0.00030541,4]
[356485608,1742519432314,-195.0,0.00030696,2]
[356485609,1742519432323,-200.0,0.000308,11]
[356485610,1742519432332,-500.0,0.000309,11]
[356485611,1742519432341,-1829.0,0.00031016,2]
[356485612,1742519432351,-152.0,0.00031073,10]
[356485613,1742519432360,-358.98,0.00031096,2]
[356485614,1742519432369,-500.0,0.00031371,2]
[356485615,1742519432378,-2066.8915801,0.00031376,2]
[356485616,1742519432390,-542.0107199,0.00031376,2]
[356485617,1742519432400,-287.1507,0.00031377,2]
[356485618,1742519432409,-572.269,0.00031377,29]
[356485619,1742519432419,-321.46368618,0.00031378,2]
[356485620,1742519432428,-2240.41478823,0.00031378,2]
[356485621,1742519432437,-477.75985292,0.00031378,2]
[356485622,1742519432446,-929.93724446,0.00031378,3]
[356485623,1742519432455,-150.0,0.0003147,2]
[356485624,1742519432464,-151.3274033,0.00031473,2]
[356485625,1742519432473,-153.008266,0.00031475,7]
[356485626,1742519432483,-240.61581,0.00031475,7]
[356485627,1742519432493,-151.0,0.00031475,7]
[356485628,1742519432502,-152.947381,0.00031475,7]
[356485629,1742519432511,-152.947381,0.00031475,7]
[356485630,1742519432520,-151.0,0.00031475,7]
[356485631,1742519432529,-247.059308,0.00031475,7]
[356485632,1742519432538,-299.713211,0.00031475,7]
[356485633,1742519432548,-151.0,0.00031475,7]
[356485634,1742519432558,-151.0,0.00031475,7]
[356485635,1742519432570,-151.0,0.00031475,7]
[356485636,1742519432579,-151.0,0.00031475,7]
[356485637,1742519432588,-194.695584,0.00031475,7]
[356485638,1742519432598,-194.695584,0.00031475,7]
[356485639,1742519432607,-629.067001,0.00031477,7]
[356485640,1742519432616,-629.067001,0.00031477,7]
[356485641,1742519432625,-629.067001,0.00031477,7]
[356485642,1742519432635,-629.067001,0.00031477,7]
[356485643,1742519432644,-629.067001,0.00031477,7]
[356485644,1742519432653,-629.067001,0.00031477,7]
[356485645,1742519432662,-229.563369,0.00031477,7]
[356485646,1742519432671,-229.563369,0.00031477,7]
[356485647,1742519432681,-229.563369,0.00031477,7]
[356485648,1742519432690,-229.563369,0.00031477,7]
[356485649,1742519432699,-229.563369,0.00031477,7]
[356485650,1742519432708,-229.563369,0.00031477,7]
[356485651,1742519432717,-229.563369,0.00031477,7]
[356485652,1742519432727,-229.563369,0.00031477,7]
[356485653,1742519432736,-229.563369,0.00031477,7]
[356485654,1742519432745,-229.563369,0.00031477,7]
[356485655,1742519432754,-151.0,0.00031477,7]
[356485656,1742519432763,-151.0,0.00031477,7]
[356485657,1742519432772,-151.0,0.00031477,7]
[356485658,1742519432781,-151.0,0.00031477,7]
[356485659,1742519432790,-151.0,0.00031477,7]
[356485660,1742519432799,-151.0,0.00031477,7]
[356485661,1742519432808,-151.0,0.00031477,7]
[356485662,1742519432817,-218.332987,0.00031477,7]
[356485663,1742519432827,-218.332987,0.00031477,7]
[356485664,1742519432836,-218.332987,0.00031477,7]
[356485665,1742519432845,-218.332987,0.00031477,7]
[356485666,1742519432854,-218.332987,0.00031477,7]
[356485667,1742519432863,-151.0,0.00031477,7]
[356485668,1742519432872,-151.0,0.00031477,7]
[356485669,1742519432882,-218.332987,0.00031477,7]
[356485670,1742519432891,-218.332987,0.00031477,7]
[356485671,1742519432900,-218.332987,0.00031477,7]
[356485672,1742519432910,-218.332987,0.00031477,7]
[356485673,1742519432919,-218.332987,0.00031477,7]
[356485674,1742519432928,-151.0,0.00031477,7]
[356485675,1742519432937,-151.0,0.00031477,7]
[356485676,1742519432947,-209.737756,0.00031477,7]
[356485677,1742519432956,-211.86694,0.00031477,7]
[356485678,1742519432965,-211.86694,0.00031477,7]
[356485679,1742519432975,-211.86694,0.00031477,7]
[356485680,1742519432985,-211.86694,0.00031477,7]
[356485681,1742519432995,-151.0,0.00031477,7]
[356485682,1742519433004,-151.0,0.00031477,7]
[356485683,1742519433013,-151.0,0.00031477,7]
[356485684,1742519433023,-151.0,0.00031477,7]
[356485685,1742519433033,-151.0,0.00031477,7]
[356485686,1742519433042,-151.0,0.00031477,7]
[356485687,1742519433052,-151.0,0.00031477,7]
[356485688,1742519433062,-151.0,0.00031477,7]
[356485689,1742519433071,-1555.170678,0.00031477,7]
[356485690,1742519433080,-1555.170678,0.00031477,7]
[356485691,1742519433090,-151.0,0.00031477,7]
[356485692,1742519433099,-151.0,0.00031477,7]
[356485693,1742519433109,-306.07024364,0.00031477,7]
[356485694,1742519433123,-444.90101017,0.00031477,7]
[356485695,1742519433146,-804.19942419,0.00031477,7]
[356485696,1742519433156,-1555.170678,0.00031477,7]
[356485697,1742519433166,-151.0,0.00031477,7]
[356485698,1742519433176,-151.0,0.00031477,7]
[356485699,1742519433186,-151.0,0.00031477,7]
[356485700,1742519433196,-151.0,0.00031477,7]
[356485701,1742519433206,-131.69171151,0.00031477,7]
[356485702,1742519433223,-19.30828849,0.00031477,7]
[356485703,1742519433232,-151.0,0.00031477,7]
[356485704,1742519433241,-317.665434,0.00031477,7]
[356485705,1742519433251,-317.665434,0.00031477,7]
[356485706,1742519433261,-194.45084351,0.00031477,7]
[356485707,1742519437708,-123.21459049,0.00031477,7]
[356485708,1742519437718,-317.665434,0.00031477,7]
[356485709,1742519437728,-151.0,0.00031477,7]
[356485710,1742519437737,-148.86997551,0.00031477,7]
[356485711,1742519437767,-2.13002449,0.00031477,7]
[356485712,1742519437776,-289.543497,0.00031477,7]
[356485713,1742519437786,-289.543497,0.00031477,7]
[356485714,1742519437796,-289.543497,0.00031477,7]
[356485715,1742519437806,-289.543497,0.00031477,7]
[356485716,1742519437815,-7.85182204,0.00031477,7]
[356485717,1742519437831,-281.69167496,0.00031477,7]
[356485718,1742519437840,-177.15688158,0.00031477,7]
[356485719,1742519437851,-112.38661542,0.00031477,7]
[356485720,1742519437861,-289.543497,0.00031477,7]
[356485721,1742519437870,-97.83278609,0.00031477,7]
[356485722,1742519437943,-191.71071091,0.00031477,7]
[356485723,1742519437953,-289.543497,0.00031477,7]
[356485724,1742519437963,-289.543497,0.00031477,7]
[356485725,1742519437973,-134.44264908,0.00031477,7]
[356485742,1742519439801,-16.55735092,0.00031477,7]
[356485743,1742519439810,-151.0,0.00031477,7]
[356485744,1742519439820,-151.0,0.00031477,7]
[356485745,1742519439829,-151.0,0.00031477,7]
[356485746,1742519439839,-186.58264908,0.00031477,7]
[356485747,1742519439858,-56.30721792,0.00031477,7]
[356485748,1742519439867,-1850.316433,0.00031477,7]
[356485749,1742519439876,-1850.316433,0.00031477,7]
[356485750,1742519439886,-1850.316433,0.00031477,7]
[356485751,1742519439896,-1850.316433,0.00031477,7]
[356485752,1742519439905,-1850.316433,0.00031477,7]
[356485753,1742519439914,-1850.316433,0.00031477,7]
[356485754,1742519439924,-151.0,0.00031477,7]
[356485755,1742519439933,-151.0,0.00031477,7]
[356485756,1742519439943,-151.0,0.00031477,7]
[356485757,1742519439951,-151.0,0.00031477,7]
[356485758,1742519439961,-151.0,0.00031477,7]
[356485759,1742519439970,-151.0,0.00031477,7]
[356485760,1742519439979,-151.0,0.00031477,7]
[356485761,1742519439988,-151.0,0.00031477,7]
[356485762,1742519439998,-151.0,0.00031477,7]
[356485763,1742519440008,-151.0,0.00031477,7]
[356485764,1742519440018,-151.0,0.00031477,7]
[356485765,1742519440027,-151.0,0.00031477,7]
[356485766,1742519440037,-151.0,0.00031477,7]
[356485767,1742519440047,-128.23299384,0.00031477,7]
[356485768,1742519440059,-22.76700616,0.00031477,7]
[356485769,1742519440068,-358.69699384,0.00031477,7]
[356485770,1742519440087,-76.38439116,0.00031477,7]
[356485771,1742519440097,-435.081385,0.00031477,7]
[356485772,1742519440106,-435.081385,0.00031477,7]
[356485773,1742519440115,-435.081385,0.00031477,7]
[356485774,1742519440124,-435.081385,0.00031477,7]
[356485775,1742519440133,-435.081385,0.00031477,7]
[356485776,1742519440143,-151.0,0.00031477,7]
[356485777,1742519440152,-151.945352,0.00031477,7]
[356485778,1742519440161,-151.0,0.00031477,7]
[356485779,1742519440170,-151.0,0.00031477,7]
[356485780,1742519440179,-151.0,0.00031477,7]
[356485781,1742519440189,-151.0,0.00031477,7]
[356485782,1742519440198,-151.0,0.00031477,7]
[356485783,1742519440208,-20.40436927,0.00031477,7]
[356485784,1742519440219,-130.59563073,0.00031477,7]
[356485785,1742519440228,-151.0,0.00031477,7]
[356485786,1742519440237,-151.0,0.00031477,7]
[356485787,1742519440247,-151.0,0.00031477,7]
[356485788,1742519440256,-151.0,0.00031477,7]
[356485789,1742519440265,-151.0,0.00031477,7]
[356485790,1742519440275,-151.735228,0.00031477,7]
[356485791,1742519440284,-830.01100555,0.00031477,7]
[356485792,1742519440347,-254.50162511,0.00031477,7]
[356485793,1742519440362,-421.81674534,0.00031477,7]
[356485794,1742519440371,-1333.03897056,0.00031477,7]
[356485804,1742519445729,-259.43931699,0.00031377,2]
[356485806,1742519445786,-1290.08773362,0.00031377,2]
[356485807,1742519445796,-173.29040544,0.00031477,7]
[356485808,1742519445808,-1506.329376,0.00031477,7]
[356485809,1742519445822,-1506.329376,0.00031477,7]
[356485810,1742519445836,-1506.329376,0.00031477,7]
[356485811,1742519445847,-1506.329376,0.00031477,7]
[356485812,1742519445857,-310.0,0.00031478,5]
[356485813,1742519445867,-151.0,0.00031478,7]
[356485814,1742519445880,-151.0,0.00031478,7]
[356485815,1742519445892,-151.0,0.00031478,7]
[356485816,1742519445904,-166.372436,0.00031478,7]
[356485817,1742519445916,-151.0,0.00031478,7]
[356485818,1742519445929,-151.0,0.00031478,7]
[356485819,1742519445941,-151.0,0.00031478,7]
[356485820,1742519445953,-151.0,0.00031478,7]
[356485821,1742519445965,-151.0,0.00031478,7]
[356485822,1742519445976,-151.0,0.00031478,7]
[356485823,1742519445987,-461.316011,0.00031478,7]
[356485824,1742519445999,-461.316011,0.00031478,7]
[356485825,1742519446010,-461.316011,0.00031478,7]
[356485826,1742519446021,-461.316011,0.00031478,7]
[356485827,1742519446032,-461.316011,0.00031478,7]
[356485828,1742519446043,-461.316011,0.00031478,7]
[356485829,1742519446056,-151.0,0.00031478,7]
[356485830,1742519446067,-151.0,0.00031478,7]
[356485831,1742519446078,-151.0,0.00031478,7]
[356485832,1742519446090,-151.0,0.00031478,7]
[356485833,1742519446103,-151.0,0.00031478,7]
[356485834,1742519446114,-151.0,0.00031478,7]
[356485835,1742519446127,-151.0,0.00031478,7]
[356485836,1742519446138,-151.0,0.00031478,7]
[356485837,1742519446149,-151.0,0.00031478,7]
[356485838,1742519446161,-151.0,0.00031478,7]
[356485839,1742519446172,-151.0,0.00031478,7]
[356485840,1742519446183,-151.0,0.00031478,7]
[356485841,1742519446194,-151.0,0.00031478,7]
[356485842,1742519446206,-151.0,0.00031478,7]
[356485843,1742519446217,-151.0,0.00031478,7]
[356485844,1742519446228,-260.03496,0.00031478,7]
[356485845,1742519446239,-260.03496,0.00031478,7]
[356485846,1742519446251,-260.03496,0.00031478,7]
[356485847,1742519446262,-151.0,0.00031478,7]
[356485848,1742519446273,-156.48,0.00031478,7]
[356485849,1742519446284,-260.03496,0.00031478,7]
[356485850,1742519446295,-260.03496,0.00031478,7]
[356485851,1742519446308,-194.06887497,0.00031478,7]
[356485852,1742519446327,-65.96608503,0.00031478,7]
[356485853,1742519446338,-151.0,0.00031478,7]
[356485854,1742519446349,-151.0,0.00031478,7]
[356485855,1742519446360,-151.0,0.00031478,7]
[356485856,1742519446371,-151.0,0.00031478,7]
[356485857,1742519446383,-151.0,0.00031478,7]
[356485858,1742519446395,-151.0,0.00031478,7]
[356485859,1742519446407,-151.0,0.00031478,7]
[356485860,1742519446419,-151.0,0.00031478,7]
[356485861,1742519446431,-151.0,0.00031478,7]
[356485862,1742519446442,-10000.0,0.00031478,7]
[356485863,1742519446453,-10000.0,0.00031478,7]
[356485864,1742519446464,-10000.0,0.00031478,7]
[356485865,1742519446475,-10000.0,0.00031478,7]
[356485866,1742519446486,-10000.0,0.00031478,7]
[356485867,1742519446497,-10000.0,0.00031478,7]
[356485868,1742519446508,-10000.0,0.00031478,7]
[356485869,1742519446519,-230.2144,0.00031478,7]
[356485870,1742519446530,-230.2144,0.00031478,7]
[356485871,1742519446542,-230.2144,0.00031478,7]
[356485872,1742519446553,-230.2144,0.00031478,7]
[356485873,1742519446567,-230.2144,0.00031478,7]
[356485874,1742519446578,-230.2144,0.00031478,7]
[356485875,1742519446588,-151.0,0.00031478,7]
[356485876,1742519446599,-151.0,0.00031478,7]
[356485877,1742519446611,-151.0,0.00031478,7]
[356485878,1742519446622,-151.0,0.00031478,7]
[356485879,1742519446633,-151.0,0.00031478,7]
[356485880,1742519446645,-151.0,0.00031478,7]
[356485881,1742519446656,-151.0,0.00031478,7]
[356485882,1742519446669,-151.0,0.00031478,7]
[356485883,1742519446680,-151.0,0.00031478,7]
[356485884,1742519446691,-178.568381,0.00031478,7]
[356485885,1742519446702,-178.568381,0.00031478,7]
[356485886,1742519446713,-178.568381,0.00031478,7]
[356485887,1742519446724,-151.0,0.00031478,7]
[356485888,1742519446735,-151.0,0.00031478,7]
[356485889,1742519446747,-151.0,0.00031478,7]
[356485890,1742519446758,-178.568381,0.00031478,7]
[356485891,1742519446771,-178.568381,0.00031478,7]
[356485892,1742519446788,-178.568381,0.00031478,7]
[356485893,1742519446800,-151.0,0.00031478,7]
[356485894,1742519446811,-151.0,0.00031478,7]
[356485895,1742519446822,-151.0,0.00031478,7]
[356485896,1742519446832,-151.0,0.00031478,7]
[356485897,1742519446842,-201.912632,0.00031478,7]
[356485898,1742519446851,-151.0,0.00031478,7]
[356485899,1742519446861,-151.0,0.00031478,7]
[356485900,1742519446870,-151.0,0.00031478,7]
[356485901,1742519446879,-151.0,0.00031478,7]
[356485902,1742519446889,-151.0,0.00031478,7]
[356485903,1742519446898,-210.068335,0.00031478,7]
[356485904,1742519446908,-151.0,0.00031478,7]
[356485905,1742519446918,-151.0,0.00031478,7]
[356485906,1742519446927,-392.566976,0.00031478,7]
[356485907,1742519446936,-392.566976,0.00031478,7]
[356485908,1742519446946,-392.566976,0.00031478,7]
[356485909,1742519446955,-262.660882,0.00031478,7]
[356485910,1742519446964,-262.660882,0.00031478,7]
[356485911,1742519446974,-262.660882,0.00031478,7]
[356485912,1742519447210,-392.566976,0.00031478,7]
[356485913,1742519447229,-392.566976,0.00031478,7]
[356485914,1742519447243,-392.566976,0.00031478,7]
[356485915,1742519447252,-262.660882,0.00031478,7]
[356485916,1742519447262,-262.660882,0.00031478,7]
[356485917,1742519447271,-262.660882,0.00031478,7]
[356485918,1742519447280,-151.0,0.00031478,7]
[356485919,1742519447289,-151.0,0.00031478,7]
[356485920,1742519447299,-153.921915,0.00031478,7]
[356485921,1742519447308,-293.252486,0.00031478,7]
[356485922,1742519447317,-293.252486,0.00031478,7]
[356485923,1742519447327,-293.252486,0.00031478,7]
[356485924,1742519447336,-293.252486,0.00031478,7]
[356485925,1742519447345,-293.252486,0.00031478,7]
[356485926,1742519447354,-293.252486,0.00031478,7]
[356485927,1742519447363,-401.055144,0.00031478,7]
[356485928,1742519447372,-401.055144,0.00031478,7]
[356485929,1742519447382,-401.055144,0.00031478,7]
[356485930,1742519447391,-649.637406,0.00031478,7]
[356485931,1742519447401,-649.637406,0.00031478,7]
[356485932,1742519447410,-649.637406,0.00031478,7]
[356485933,1742519447420,-401.055144,0.00031478,7]
[356485934,1742519447429,-401.055144,0.00031478,7]
[356485935,1742519447438,-401.055144,0.00031478,7]
[356485936,1742519447447,-649.637406,0.00031478,7]
[356485937,1742519447456,-649.637406,0.00031478,7]
[356485938,1742519447465,-649.637406,0.00031478,7]
[356485939,1742519447475,-208.943913,0.00031478,7]
[356485940,1742519447486,-208.943913,0.00031478,7]
[356485941,1742519447495,-208.943913,0.00031478,7]
[356485942,1742519447504,-208.943913,0.00031478,7]
[356485943,1742519447513,-208.943913,0.00031478,7]
[356485944,1742519447523,-208.943913,0.00031478,7]
[356485945,1742519447532,-490.296531,0.00031478,7]
[356485946,1742519447541,-490.296531,0.00031478,7]
[356485947,1742519447549,-490.296531,0.00031478,7]
[356485948,1742519447559,-490.296531,0.00031478,7]
[356485949,1742519447571,-490.296531,0.00031478,7]
[356485950,1742519447580,-490.296531,0.00031478,7]
[356485951,1742519447589,-373.380956,0.00031478,7]
[356485952,1742519447598,-373.380956,0.00031478,7]
[356485953,1742519447608,-151.0,0.00031478,7]
[356485954,1742519447616,-227.687201,0.00031478,7]
[356485955,1742519447625,-373.380956,0.00031478,7]
[356485956,1742519447635,-151.0,0.00031478,7]
[356485957,1742519447644,-227.687201,0.00031478,7]
[356485958,1742519447653,-151.0,0.00031478,7]
[356485959,1742519447663,-227.687201,0.00031478,7]
[356485960,1742519447672,-373.380956,0.00031478,7]
[356485961,1742519447681,-373.380956,0.00031478,7]
[356485962,1742519447691,-373.380956,0.00031478,7]
[356485963,1742519447700,-227.687201,0.00031478,7]
[356485964,1742519447709,-227.687201,0.00031478,7]
[356485965,1742519447718,-227.687201,0.00031478,7]
[356485966,1742519447728,-151.0,0.00031478,7]
[356485967,1742519447738,-151.0,0.00031478,7]
[356485968,1742519447747,-151.0,0.00031478,7]
[356485969,1742519447756,-151.0,0.00031478,7]
[356485970,1742519447766,-151.0,0.00031478,7]
[356485971,1742519447776,-151.0,0.00031478,7]
[356485972,1742519447785,-151.0,0.00031478,7]
[356485973,1742519447794,-212.449597,0.00031478,7]
[356485974,1742519447803,-151.0,0.00031478,7]
[356485975,1742519447813,-151.0,0.00031478,7]
[356485976,1742519447822,-208.513293,0.00031478,7]
[356485977,1742519447831,-151.0,0.00031478,7]
[356485978,1742519447840,-151.0,0.00031478,7]
[356485979,1742519447850,-151.0,0.00031478,7]
[356485980,1742519447859,-151.0,0.00031478,7]
[356485981,1742519447869,-151.0,0.00031478,7]
[356485982,1742519447878,-151.0,0.00031478,7]
[356485983,1742519447887,-167.792148,0.00031478,7]
[356485984,1742519447896,-167.792148,0.00031478,7]
[356485985,1742519447906,-167.792148,0.00031478,7]
[356485986,1742519447915,-167.792148,0.00031478,7]
[356485987,1742519447925,-167.792148,0.00031478,7]
[356485988,1742519447935,-167.792148,0.00031478,7]
[356485989,1742519447945,-183.928804,0.00031478,7]
[356485990,1742519447955,-183.928804,0.00031478,7]
[356485991,1742519447964,-183.928804,0.00031478,7]
[356485992,1742519447973,-183.928804,0.00031478,7]
[356485993,1742519447983,-183.928804,0.00031478,7]
[356485994,1742519447992,-183.928804,0.00031478,7]
[356485995,1742519448001,-236.6739,0.00031478,7]
[356485996,1742519448012,-236.6739,0.00031478,7]
[356485997,1742519448022,-236.6739,0.00031478,7]
[356485998,1742519448031,-450.514493,0.00031478,7]
[356485999,1742519448041,-450.514493,0.00031478,7]
[356486000,1742519448050,-450.514493,0.00031478,7]
[356486001,1742519448061,-236.6739,0.00031478,7]
[356486002,1742519448071,-236.6739,0.00031478,7]
[356486003,1742519448081,-236.6739,0.00031478,7]
[356486004,1742519448090,-387.61582246,0.00031478,2]
[356486005,1742519448101,-200290.29968612,0.00031478,2]
[356486006,1742519448111,-32088.59067638,0.00031478,2]
[356486007,1742519448132,-24249.13974539,0.00031478,2]
[356486008,1742519448144,-10325.87537872,0.00031478,2]
[356486009,1742519448167,-4448.76994958,0.00031478,2]
[356486011,1742520268847,3201.10792004,0.00031478,30]
[356486013,1742520411552,1252.39252018,9.77e-05,2]
[356486014,1742520411575,1084.34807942,9.77e-05,2]
[356486015,1742520478157,-293.28535622,0.0001,2]
[356486017,1742520520752,-5068.87937302,0.0001,2]
[356486019,1742520520812,-2557.69734303,0.0001,2]
[356486021,1742520524314,-318.2476962,0.0001,2]
[356486024,1742520546099,-5221.41090734,0.0001,2]
[356486026,1742520546139,-5174.71966493,0.0001,2]
[356486027,1742520546859,-2398.97236254,0.0001,2]
[356486041,1742520580149,-1496.71551381,0.0001,2]
[356486042,1742520595462,-501.72082279,0.00011973,2]
[356486043,1742520595484,-29798.27917721,0.00012,2]
[356486048,1742520632142,-42178.19396145,0.00012,2]
[356486049,1742520632153,-252.135,0.00012,2]
[356486050,1742520632165,-447.9066844,0.00012,2]
[356486051,1742520632180,-92938.36473493,0.00012,2]
[356486245,1742520637837,-10229.78856764,0.00012,2]
[356486246,1742520637848,-1821.08756165,0.00012,2]
[356486247,1742520637923,-472.35402375,0.00012,2]
[356486248,1742520637934,-830.49,0.00012,2]
[356486249,1742520638149,-421.48368268,0.00012,2]
[356486442,1742520640055,-470.89476816,0.00012,2]
[356486444,1742520640066,-438.65514724,0.00012,2]
[356486460,1742520640201,-188.41367071,0.00012,2]
[356486541,1742520643235,-4104.2072107,0.00012,2]
[356486544,1742520643466,-288.38941277,0.00012,2]
[356486628,1742520646173,-5617.80293233,0.00012,2]